Cogmind - Beta 13 @@@ ROGUE MODE // 2024.04.14 @ 12:06:53 Player: Bearly Playable Result: Destroyed by S-10 Pest with Light Assault Rifle Performance ------------- Evolutions (0) 0 Regions Visited (1) 200 Robots Destroyed (16) 80 Value Destroyed (426) 426 Prototype IDs (2) 40 Alien Tech Used (0) 0 Bonus (0) 0 TOTAL SCORE: 746 Bonus ------- None Cogmind --------- Core Integrity 0/250 Matter 296/300 Energy 248/250 System Corruption 4% Temperature Cool (0) Movement Rolling (105) Ox1 Location -10/Materials Parts ------- > --- POWER (1) -------- Ion Engine > --- PROPULSION (2) --- Wheel (fused) Compact Wheel > --- UTILITY (2) ------ Large Storage Unit ECM Suite > --- WEAPON (2) ------- Medium Laser Small Laser > --- INVENTORY (15) --- Light Ion Engine Wheel Wheel Wheel Improved Heat Sink Small Storage Unit Machine Analyzer Visual Processing Unit Visual Processing Unit Signal Interpreter Hardened Light Armor Plating Hardened Light Armor Plating Recalibrator Small Laser Small Laser Peak State ------------ > --- POWER ------------ Light Nuclear Core > --- PROPULSION ------- Wheel Compact Wheel > --- UTILITY ---------- Large Storage Unit ECM Suite > --- WEAPON ----------- Small Laser Light Assault Rifle > --- INVENTORY -------- Light Ion Engine Wheel Improved Heat Sink Small Storage Unit Visual Processing Unit Signal Interpreter Small Laser [Rating: 10] Favorites ----------- Power Light Nuclear Core Engine Ion Engine Power Core Light Nuclear Core Propulsion Wheel Leg Aluminum Leg Wheel Wheel Utility ECM Suite Device ECM Suite Storage Large Storage Unit Weapon Small Laser Energy Gun Small Laser Ballistic Gun Light Assault Rifle Build | -11 -10 ------- Run | Yrd Mat Slots Evolved . | . . Power . | . . Propulsion . | . . Utility . | . . Weapon . | . . Parts Attached 22 | 6 16 Power 4 | 1 3 Engine 3 | 1 2 Core 1 | . 1 Reactor . | . . Propulsion 9 | 2 7 Treads . | . . Leg 2 | . 2 Wheel 7 | 2 5 Hover . | . . Flight . | . . Utility 3 | 1 2 Device 1 | . 1 Storage 2 | 1 1 Processor . | . . Hackware . | . . Protection . | . . Artifact . | . . Weapon 6 | 2 4 Energy Gun 4 | 1 3 Energy Cannon . | . . Ballistic Gun 2 | 1 1 Ballistic Cannon . | . . Launcher . | . . Special Weapon . | . . Impact Weapon . | . . Slashing Weapon . | . . Piercing Weapon . | . . Special Melee Weapon . | . . Unidentified Prototypes . | . . Parts Lost 4 | . 4 Power 2 | . 2 Propulsion 1 | . 1 Utility . | . . Weapon 1 | . 1 Highest Loss Streak 2 | . 2 To Critical Strikes . | . . Average Slot Usage (%) 95 | . 95 Engine 5 | . 5 Core 7 | . 7 Wheel 25 | . 25 Device 12 | . 12 Storage 14 | . 14 Energy Gun 20 | . 20 Ballistic Gun 7 | . 7 Naked Turns . | . . Heaviest Build 30 | 12 30 Greatest Support 26 | 20 26 Greatest Overweight (x) 2 | . 2 Average Overweight (x) . | . . Largest Inventory Capacity 15 | 8 15 Average Capacity 13 | 7 13 Most Carried 15 | 2 15 Average Carried 9 | 1 10 Final Capacity 15 | 8 15 Final Carried 15 | 2 15 Class Distribution -------------------- 100% | Mutant Dominant Class ---------------- Mutant | -10/Materials Resources | -11 -10 ----------- Run | Yrd Mat Matter Collected 510 | 222 288 Remotely . | . . Salvage Created 514 | . 514 Parts 35 | . 35 Haulers Intercepted . | . . Recyclers Shooed 1 | . 1 Parts Field Recycled . | . . Retrieved Matter . | . . Parts Self-Destructed . | . . Prevented . | . . Kills | -11 -10 ------- Run | Yrd Mat Combat Hostiles Destroyed 10 | . 10 Guns 10 | . 10 Classes Destroyed 6 | . 6 Builder 1 | . 1 Tunneler 1 | . 1 Mechanic 1 | . 1 Operator 2 | . 2 Watcher 1 | . 1 Grunt 10 | . 10 Best Kill Streak 3 | . 3 Combat Bots Only 2 | . 2 Max Kills in Single Turn 1 | . 1 Gunslinging . | . . Exploded . | . . Melee . | . . Uniques/NPCs Destroyed . | . . Combat | -11 -10 -------- Run | Yrd Mat Hostile Shots Fired 81 | . 81 Missed 21 | . 21 Damage Taken 749 | . 749 Core 252 | . 252 Absorbed by Shields . | . . Core Remaining (%) 100 | 100 . Volleys Fired 92 | . 92 Largest 2 | . 2 Hottest 90 | . 90 Shots Fired 180 | . 180 Gun 180 | . 180 Cannon . | . . Launcher . | . . Special . | . . Kinetic 53 | . 53 Thermal 127 | . 127 Explosive . | . . Electromagnetic . | . . Robot Hit Streak 8 | . 8 Robot Miss Streak 9 | . 9 Penetration Max . | . . Secondary Targets 3 | . 3 Max Gunslinging Chain 1 | . 1 Shots Hit Robots 81 | . 81 Core Hits 35 | . 35 Critical Kills . | . . Critical Parts Destroyed . | . . Critical Strikes 8 | . 8 Burn 8 | . 8 Melee Attacks . | . . Impact . | . . Slashing . | . . Piercing . | . . Sneak Attacks . | . . Combat Hostiles . | . . Follow-up Attacks . | . . Damage Inflicted 936 | . 936 Guns 925 | . 925 Cannons . | . . Explosions . | . . Melee . | . . Ramming 11 | . 11 Kinetic 189 | . 189 Thermal 736 | . 736 Explosive . | . . Electromagnetic . | . . Impact . | . . Slashing . | . . Piercing . | . . Highest Corruption 4 | . 4 Average Corruption 3 | . 3 Corruption Purged . | . . Corruption Blocked . | . . Effects 24 | . 24 Message Errors 5 | . 5 Matter Fused 8 | . 8 Heat Flow Errors 1 | . 1 Energy Discharges 2 | . 2 Parts Rejected 1 | . 1 Parts Fused 1 | . 1 Data Loss (minor) 4 | . 4 Data Loss (major) 1 | . 1 Weapon Failures 1 | . 1 Overload Shots . | . . Overflow Damage . | . . Projectiles . | . . Explosions . | . . Melee . | . . Knockbacks . | . . Impact . | . . Kinetic . | . . Secondary . | . . Self-Inflicted Damage 5 | . 5 Shots . | . . Rammed 2 | . 2 Targets Rammed 2 | . 2 Kicked . | . . Crushed . | . . Highest Temperature 300 | . 300 Average Temperature 93 | . 93 Received Heat Transfer 447 | . 447 Effects 4 | . 4 Interference 4 | . 4 Siege Activations . | . . Robots Corrupted . | . . Combat Hostiles . | . . Parts Fried . | . . Impact Corruptions . | . . Robots Melted . | . . Combat Hostiles . | . . Parts Melted 6 | . 6 Heat Transferred 2502 | . 2502 Parts Sabotaged . | . . Parts Stolen . | . . Parts Stripped . | . . Power Chain Reactions . | . . Alert | -11 -10 ------- Run | Yrd Mat Peak Influence 140 | . 140 Initial . | . . Average 75 | . 79 Maximum Alert Level . | . . Low Security (%) 100 | 100 100 Level 1 . | . . Level 2 . | . . Level 3 . | . . Level 4 . | . . Level 5 . | . . High Security . | . . Max Security . | . . Squads Dispatched 3 | . 3 Investigation . | . . Extermination . | . . Reinforcement 3 | . 3 Assault . | . . Garrison . | . . Intercept . | . . Searches Triggered . | . . Construction Impeded . | . . Haulers Reinforced . | . . Active Scanning Responses . | . . Cargo Convoy Interrupts . | . . Stealth | -11 -10 --------- Run | Yrd Mat Distress Signals 1 | . 1 Communications Jammed . | . . Distress Signals . | . . Times Spotted 37 | . 37 Peak Tracking Total 3 | . 3 Tactical Retreats 3 | . 3 Traps | -11 -10 ------- Run | Yrd Mat Traps Triggered 2 | . 2 Indirectly . | . . Trap Hack Attempts . | . . Triggered . | . . Disarmed . | . . Reprogrammed . | . . Reused . | . . Traps Extracted . | . . Installed . | . . Triggered . | . . Machines | -11 -10 ---------- Run | Yrd Mat Machines Disabled . | . . Max in Single Turn . | . . Machines Repaired . | . . Machines Dismantled . | . . Machines Sabotaged . | . . Overloaded Fab Kills . | . . Hacking | -11 -10 --------- Run | Yrd Mat Machines Accessed 4 | . 4 Terminals 3 | . 3 Fabricators . | . . Repair Stations . | . . Recycling Units 1 | . 1 Scanalyzers . | . . Garrison Access . | . . Total Hacks 9 | . 9 Successful 5 | . 5 Failed 4 | . 4 Catastrophic 1 | . 1 Database Lockouts . | . . Manual 7 | . 7 Terminals 7 | . 7 Fabricators . | . . Repair Stations . | . . Recycling Units 2 | . 2 Scanalyzers . | . . Garrison Access . | . . Terminal Hacks 1 | . 1 Prototype ID Bank 1 | . 1 Fabricator Hacks . | . . Repair Station Hacks . | . . Recycling Unit Hacks . | . . Scanalyzer . | . . Garrison Access Hacks . | . . Unauthorized Hacks 4 | . 4 Terminals 3 | . 3 Botnet 2 | . 2 Operators 1 | . 1 Fabricators . | . . Repair Stations . | . . Recycling Units 1 | . 1 Reject 1 | . 1 Scanalyzers . | . . Garrison Access . | . . Data Cores Recovered . | . . Used . | . . Hacking Detections 3 | . 3 Full Trace Events . | . . Feedback Events . | . . Feedback Blocked . | . . Robot Schematics Acquired . | . . Robots Built . | . . Authchips . | . . Time . | . . Total Robot Build Rating . | . . Part Schematics Acquired . | . . Parts Built . | . . Authchips . | . . Time . | . . Total Part Build Rating . | . . Parts Repaired . | . . Time . | . . Parts Recycled . | . . Recycled Matter . | . . Retrieved Matter . | . . Retrieved Components . | . . Parts Scanalyzed . | . . Part Schematics Acquired . | . . Parts Damaged . | . . Bothacking | -11 -10 ------------ Run | Yrd Mat Used RIF Installer . | . . Robots Hacked . | . . Non-combat . | . . Combat . | . . Robot Hacks Applied . | . . Relay Couplers Released . | . . Fabnet Peak Effective % . | . . Robots Rewired . | . . Allies Hacked . | . . Hacks Repelled . | . . Allies | -11 -10 -------- Run | Yrd Mat Total Allies . | . . Largest Group . | . . Highest-Rated Group . | . . Highest-Rated Ally . | . . Total Orders . | . . Ally Attacks . | . . Total Damage . | . . Kills . | . . Allies Corrupted . | . . Allies Melted . | . . Intel | -11 -10 ------- Run | Yrd Mat Robot Analysis Total . | . . Derelict Logs Recovered . | . . Drone Launches . | . . Drone Recoveries . | . . Exploration | -11 -10 ------------- Run | Yrd Mat Turns Passed 1238 | 62 1176 Spaces Moved 833 | 65 768 Core 1 | 1 . Treads . | . . Legs . | . . Wheels 832 | 64 768 Hover . | . . Flight . | . . Fastest Speed 50 | 50 80 Average Speed 99 | 79 101 Slowest Speed 110 | 80 110 Overloaded Moves . | . . Propulsion Burnouts . | . . Robots Hopped . | . . Cave-ins Triggered . | . . Exploration Rate (%) 40 | 4 77 Regions Visited 1 Branch Regions . Pre-discovered Areas . | . . Known Exits Taken . | . . Unknown Exits Taken 1 | 1 . Scrap Searched . | . . Spaces Dug . | . . Terrain Destroyed . | . . Melee . | . . Projectile . | . . AOE . | . . Terrain Rammed . | . . Walls Destroyed . | . . Machines Disabled . | . . Actions | -11 -10 --------- Run | Yrd Mat Total 1061 | 72 989 Wait 88 | . 88 Move 832 | 64 768 Hop . | . . Pick Up 23 | 2 21 Fast Attach 6 | 6 . Attach 7 | . 7 Detach . | . . Swap 9 | . 9 Drop 2 | . 2 Fire 92 | . 92 Melee . | . . Ram 2 | . 2 Kick . | . . Crush . | . . Escape Stasis . | . . Rewire . | . . Trap . | . . Miscellaneous . | . . Route ------- -11/Scrapyard -10/Materials (discovered 3 exits: [*Mat x2] / [*Min]) History --------- Turn | Location | Event 17 | -11/Scrapyard | Discovered new exit (range 16) 63 | -11/Scrapyard | Entered Materials 125 | -10/Materials | Core integrity fell below 50% 354 | -10/Materials | Build established: Mutant 612 | -10/Materials | Discovered new exit (range 7) 736 | -10/Materials | Discovered new exit (range 15) 788 | -10/Materials | Core integrity fell below 20% 966 | -10/Materials | Discovered new exit (range 16) 1239 | -10/Materials | Destroyed by S-10 Pest with Light Assault Rifle Last Messages --------------- 01004_ Switching to secondary target: G-34 Mercenary. 01010_ G-34 Mercenary destroyed. 01022_ O-16 Technician destroyed. 01027_ Critical hit (Burn: +37). 01039_ Connecting with Terminal... >>Prototypes Downloading prototype IDs... Imp. EM Shotgun Cld. Ion Engine 01039_ Connecting with Terminal... 01042_ Slammed into A-02 Transporter. 01042_ Destabilizing: Core damaged (-5). 01117_ System corrupted: Component data lost. 01144_ O7Q>VKEFHN&ETUDTZW9N 18:5#ZGDL 01158_ R-06 Scavenger collects Heat Sink. 01162_ R-06 Scavenger collects Sml. Laser. 01180_ KH9 BCMO4A WGG0 KIUB/DVPNV10E5WP1KUI2E3 01199_ System corrupted: Wheel fused. 01199_ Acquired 10 matter. 01237_ K-01 Serf cleans the Nuclear Reactor. Map ----- +----------------------------------------------------+ | """ % % T | | % | | ^^ #######+#### | | ##########+###########^ ####? ???# | | ###### = #???# "##""????# % | | # # ! = #???# ""##"?????# | | # # ==[!""" #???# ||##??????# | | + # ""=* """ #???# < ""#???????# | | # # "Y[* """ #???# !!#???????# " | | # # "" #???# ""#???????# """ | | ###### #???# "#???????# """ | | ####################### ####???????# """ | | ^^# #= # #??????????# "" | | ^ # # + #??????????# """ = | | + # # #??????????# "" | | # " """"" # # #??????????# ?" | | # """"""""" # """ # #??????????? ?" | | # """ """ # """ # ####### #?????? | | # # "T" """ # #???????? | | =############# # u #?????????? | | = #???????????########### #????????????? | | #?????????????????????# """ ###+#????????????? | | #?????????????????????# """ #????????????????? | | #?????????????????????# """ #????????????????? | | #?????????????????????# #????????????????? | | #?????????????????????#@ #????????????????? | | #???????????????????? #????????????????? | | #?????????????????? #????????????????? | | #???????????????? T #????????????????? | | #???????????????# ???????????????? | | #???????????????# ### ?????????????? | | #???????????????# """ #?? ???????????? | | #????o??????????#s """ #???#######??????????? | | #???????????????# """k ????????????????????? | | #???????????????# ?? #????????????????????? | | #??????????????? s??? #????????????????????? | | #????????????????????###+##????????????????????? | | #??????????????????????????????????????????????? | | #??????????????????????????????????????????????? | | ###??????????????????????????????????????????????? | | ?????????????????????????????????????????????????? | | ?????????????????????????????????????????????????? | | ?????????????????????????????????????????????????? | | ?????????????????????????????????????????????????? | | ?????????????????????????????????????????????????? | | | | | | | | | | | +----------------------------------------------------+ Best States ------------- Heat Dissipation 25 Energy Generation 14 Energy Capacity 250 Matter Stores 300 Matter Capacity 300 Sight Range 16 Terrain Scan Density 10 ECM Strength 1 Evasion (%) 44 Item Schematics ----------------- None Robot Schematics ------------------ None Fabricated ------------ Nothing Alien Tech Used ----------------- None Achievements -------------- None Challenges ------------ None Game ------ Seed CommRegenerativeBox Manual? 0 Play Time 00:17:26 Cumulative 6.8 hours Start 2024.04.14 @ 11:50:22 End 2024.04.14 @ 12:06:53 Sessions 1 Manual Loads 0 Difficulty Rogue Special Mode None Game No. 21 Rogue 21 Adventurer 0 Explorer 0 Win Type - Total 0 Types 0/0/0/0/0/0/0/0/0 Lore% 5 Gallery% 9 Achievement% 11 Wizard Run 0 Options --------- Layout 1 ASCII 0 Keyboard 0 Movement Arrows Keybinds 0 Fullscreen 1 Font 32/SmallcapsGlow Map View 77x35 Zoom Use 0% Tactical HUD 1 Map Filters NONE Filters NONE Steam 1 RUN: 286b0826-9f9d-4a65-87f0-9d95b61e71ef